[Event "Chessable English Open-ch 2022"]
[Site "Kenilwoth"]
[Date "2022.05.20"]
[Round "4.2"]
[White "Wadsworth, Matthew J"]
[Black "Jackson, James P"]
[Result "0-1"]
[ECO "A13"]
[WhiteElo "2432"]
[BlackElo "2400"]
[Annotator "TA"]
[PlyCount "106"]
[EventDate "2022.05.18"]
[EventType "swiss"]
[EventCountry "ENG"]
[SourceTitle "playchess.com"]
[Source "ChessBase"]
[SourceQuality "1"]
[TimeControl "5400+30"]

{[%evp 10,106,13,3,24,8,10,28,22,10,20,17,1,8,16,0,0,0,0,0,0,-8,0,0,0,-23,0,0,0,0,0,0,0,0,0,0,0,0,0,0,0,0,0,0,0,-110,-120,-145,-159,-209,-203,-238,-169,-414,-414,-414,-414,-414,-414,-414,-408,-400,-400,-407,-407,-409,-319,-407,-370,-407,-407,-407,-397,-397,-397,-397,-397,-602,-602,-602,-602,-602,0,0,0,-602,-572,-397,-397,-29988,-29987,-29987,-29988,-29993,-29994,-29996,-29997,-29997,-29998]} 1. g3 {[%emt 0:01:00]} Nf6 {[%emt 0:00:54]} 2. Bg2 {[%emt 0:00:12]} d5 {[%emt 0:00:29]} 3. c4 {[%emt 0:00:20]} e6 {[%emt 0:01:48]} 4. Nf3 {[%emt 0:07:14]} d4 {[%emt 0:00:23]} 5. O-O {[%emt 0:00:51]} c5 {[%emt 0:00:08]} 6. e3 {[%emt 0:00:15]} Nc6 {[%emt 0:00:07] A13: English Opening: 1...e6.} 7. d3 {[%emt 0:00:58]} Bd6 {[%emt 0:00:45]} 8. exd4 {[%emt 0:01:14]} cxd4 {[%emt 0:00:07] White has an edge.} 9. Bg5 {[%emt 0:00:06]} h6 {[%emt 0:00:32]} 10. Bxf6 {[%emt 0:00:07]} Qxf6 {[%emt 0:00:05]} 11. Nbd2 {[%emt 0:01:34][%cal Bb1d2,Bd2e4,Be4d6][%mdl 32]} Qe7 {[%emt 0:00:09]} 12. Rc1 {[%emt 0:09:56]} O-O {[%emt 0:01:06]} 13. Re1 {[%emt 0:00:31]} Rd8 {[%emt 0:03:27]} 14. a3 {[%emt 0:05:12]} a5 $1 {[%emt 0:00:33] Inhibits b4.} 15. Ne4 {[%emt 0:04:44]} Bc7 {[%emt 0:03:24]} 16. c5 {[%emt 0:00:07]} Bd7 {[%emt 0:09:17]} 17. Nfd2 {[%emt 0:05:21]} Ne5 {[%emt 0:08:23]} 18. Qe2 {[%emt 0:00:51][%cal Oe4d6]} Bc6 {[%emt 0:05:45]} 19. Nd6 {[%emt 0:06:16] [#]} Bxg2 $146 {[%emt 0:01:55]} ({Predecessor:} 19... Nd7 20. Nxb7 Bxb7 21. c6 Bxc6 22. Rxc6 Ra7 23. Rec1 Nf6 24. Qd1 Rb8 25. Qa4 Bd8 26. Qxd4 {½-½ (65) Chigaev,M (2542)-Alekseev,E (2626) Kolomna 2016}) 20. Kxg2 {[%emt 0:00:06]} Ng6 {[%emt 0:03:43]} 21. Nxb7 {[%emt 0:08:56] Pair of Knights!} Bxg3 $1 {[%emt 0:00:22]} 22. hxg3 {[%emt 0:00:32]} Qxb7+ {[%emt 0:00:06]} 23. Nf3 {[%emt 0:08:50]} Rac8 {[%emt 0:15:38]} 24. Rc4 {[%emt 0:05:06]} Rd5 $1 {[%emt 0:03:26]} 25. b4 {[%emt 0:00:53]} axb4 {[%emt 0:00:08]} 26. axb4 {[%emt 0:00:01]} Ne5 $1 {[%emt 0:04:32]} 27. Qxe5 {[%emt 0:04:05]} (27. Qe4 $1 $11 {keeps the balance.} Nxc4 28. dxc4) 27... Rxe5 $17 {[%emt 0:00:09]} 28. Rxe5 {[%emt 0:00:03]} g5 $1 {[%emt 0:06:17] Strongly threatening ...g4.} 29. Rxd4 {[%emt 0:01:49] [#]} (29. g4 $17) 29... f5 $1 $19 {[%emt 0:00:17] aiming for ...g4.} 30. g4 {[%emt 0:01:24] [#]} h5 $1 $36 {[%emt 0:02:10][%mdl 2048] Black is on the roll.} 31. gxf5 {[%emt 0:08:11]} (31. c6 {is the only way for White.} Rxc6 32. gxf5) 31... g4 {[%emt 0:00:09][%mdl 64] Pin. Really sharp!} 32. Rde4 {[%emt 0:00:04]} gxf3+ {[%emt 0:03:05]} 33. Kxf3 {[%emt 0:00:08]} exf5 {[%emt 0:13:18]} 34. Rxf5 {[%emt 0:00:48]} Rf8 {[%emt 0:00:36]} 35. Rxf8+ {[%emt 0:05:36]} Kxf8 {[%emt 0:00:06][%mdl 4096] Endgame KQ-KR} 36. Ke3 {[%emt 0:05:42]} Qd5 {[%emt 0:01:13]} 37. Ke2 {[%emt 0:02:55]} Kf7 {[%emt 0:02:09]} 38. Ke3 {[%emt 0:01:48]} Kf6 {[%emt 0:04:04]} 39. Ke2 {[%emt 0:00:18]} Kg5 {[%emt 0:01:22]} 40. Rc4 {[%emt 0:00:54]} Qc6 {[%emt 0:00:08]} 41. b5 {[%emt 0:01:29]} Qxb5 {[%emt 0:00:05] ...h4 is the strong threat.} 42. c6 {[%emt 0:00:03]} Qe5+ {[%emt 0:00:17]} 43. Kf3 {[%emt 0:00:41]} (43. Kf1 $142 Qc7 44. Kg1) 43... Qc7 {[%emt 0:00:29]} 44. Rc5+ {[%emt 0:00:13]} Kg6 {[%emt 0:01:06] Hoping for ...Qd6.} 45. d4 {[%emt 0:00:49]} Qf7+ $2 {[%emt 0:03:47]} (45... Kh6 $19 46. Rc3 h4) 46. Kg2 $11 {[%emt 0:00:27] Threatening mate with c7.} Qc7 $2 {[%emt 0:00:08][%mdl 8192]} (46... Qg8 $11) 47. Kf3 $19 {[%emt 0:00:08]} h4 {[%emt 0:01:37] Threatens to win with ...h3.} 48. Kg4 {[%emt 0:00:54]} Qd8 {[%emt 0:00:07] Inhibits Rg5+.} 49. d5 {[%emt 0:03:32]} (49. f4 $19 Qxd4 50. Rg5+ Kf6 51. c7 Qd7+ 52. Kxh4 Qxc7 53. Kg3) 49... Qg5+ {[%emt 0:01:24] Black mates.} 50. Kf3 {[%emt 0:01:23]} h3 {[%emt 0:00:58]} 51. c7 {[%emt 0:00:38]} h2 {[%emt 0:00:21]} 52. c8=Q {[%emt 0:00:26]} h1=Q+ {[%emt 0:00:07]} 53. Ke2 {[%emt 0:00:08]} Qe4+ {[%emt 0:00:23] Weighted Error Value: White=0.35/Black=0.09 (flawless)} 0-1

[Event "Chessable English Open-ch 2022"]
[Site "Kenilwoth"]
[Date "2022.05.20"]
[Round "4.4"]
[White "Willow, Jonah B"]
[Black "Pert, Richard G"]
[Result "1-0"]
[ECO "B75"]
[WhiteElo "2401"]
[BlackElo "2415"]
[Annotator "TA"]
[PlyCount "91"]
[EventDate "2022.05.18"]
[EventType "swiss"]
[EventCountry "ENG"]
[SourceTitle "playchess.com"]
[Source "ChessBase"]
[SourceQuality "1"]
[TimeControl "5400+30"]

{[%evp 19,91,91,87,87,129,100,109,97,100,114,124,128,135,33,42,0,0,0,56,52,38,0,0,0,0,-133,0,0,0,0,0,0,93,77,170,31,32,-4,0,0,0,0,6,0,-133,-134,-114,-130,-131,-292,0,0,0,0,0,0,362,0,358,368,300,0,152,106,29980,29981,29981,29981,29982,29983,29981,2643,6293,4827]} 1. e4 {[%emt 0:02:07]} c5 {[%emt 0:00:48]} 2. Nf3 {[%emt 0:00:22]} d6 {[%emt 0:00:05]} 3. d4 {[%emt 0:00:25]} cxd4 {[%emt 0:00:16]} 4. Nxd4 {[%emt 0:00:06]} Nf6 {[%emt 0:00:16]} 5. Nc3 {[%emt 0:00:04]} g6 {[%emt 0:00:46]} 6. Be3 {[%emt 0:00:09]} Bg7 {[%emt 0:00:10]} 7. f3 {[%emt 0:00:04]} Nc6 {[%emt 0:00:25]} 8. Qd2 {[%emt 0:00:32]} Bd7 {[%emt 0:00:19]} 9. O-O-O {[%emt 0:01:44]} Ne5 {[%emt 0:06:19]} 10. Kb1 {[%emt 0:07:05]} Rc8 {[%emt 0:02:21]} 11. g4 {[%emt 0:01:50] B75: Sicilian Dragon: Yugoslav Attack, Miscellaneous.} b5 {[%emt 0:01:46] [#]} 12. Bh6 $146 {[%emt 0:12:03]} (12. Bxb5 Bxb5 13. Ncxb5 Nc4 $14) ({Predecessor:} 12. h4 b4 13. Nd5 Nxd5 14. exd5 h5 15. Be2 Qa5 16. Nb3 Qc7 17. Bd4 Kf8 18. gxh5 Bf5 {0-1 (34) Pert,R (2263)-Duncan,C (2310) Birmingham 2001}) 12... Bxh6 {[%emt 0:14:09]} 13. Qxh6 {[%emt 0:00:15] White is better.} Rxc3 {[%emt 0:00:35]} 14. bxc3 {[%emt 0:00:04]} Qa5 {[%emt 0:00:46]} 15. Qe3 {[%emt 0:05:28]} O-O {[%emt 0:05:01]} 16. Nb3 {[%emt 0:03:48]} (16. g5 $16 Nh5 17. f4) 16... Qa3 $14 {[%emt 0:10:10]} 17. Be2 {[%emt 0:16:07]} Rc8 {[%emt 0:03:38]} 18. Rhf1 {[%emt 0:11:07]} Be6 {[%emt 0:18:07]} (18... Nc4 $11 19. Qc1 Qxc1+ 20. Rxc1 Nb6) 19. g5 {[%emt 0:00:34]} Nfd7 {[%emt 0:02:20]} 20. f4 {[%emt 0:00:20]} (20. Bxb5 $5 {[%cal Re3c1]} Rb8 21. Bxd7 Nxd7 22. Qc1 $14) 20... Nc4 {[%emt 0:00:48][%csl Gc4][%cal Ra3b2]} 21. Qc1 {[%emt 0:00:50] Prevents Qb2+.} Qa6 {[%emt 0:01:42]} 22. Bxc4 {[%emt 0:07:01]} (22. f5 $11 Na3+ 23. Ka1) 22... Bxc4 {[%emt 0:01:15]} (22... bxc4 $17 23. Nd4 Qa5) 23. Rfe1 $11 {[%emt 0:00:42]} Nb6 {[%emt 0:00:46]} 24. f5 {[%emt 0:02:10]} Na4 {[%emt 0:06:50]} 25. Re3 {[%emt 0:00:24]} Qb6 {[%emt 0:04:11]} (25... Qc6 $11 {remains equal.}) 26. Qd2 $1 $16 {[%emt 0:02:30]} Rc6 {[%emt 0:02:23]} (26... Qc6 $16) 27. e5 {[%emt 0:06:00]} ({Better is} 27. Rh3 $18) 27... gxf5 $14 {[%emt 0:01:17] Hoping for ...dxe5.} 28. g6 {[%emt 0:07:25]} fxg6 {[%emt 0:01:40] Strongly threatening ...dxe5.} 29. Rh3 $1 {[%emt 0:00:04] Qh6 is the strong threat.} dxe5 {[%emt 0:04:43] aiming for ...Rd6.} 30. Qh6 {[%emt 0:00:28]} Rd6 {[%emt 0:00:17]} (30... Bxb3 $2 31. Qxh7+ Kf8 32. Qh8+ Bg8 33. Rh7 Nxc3+ 34. Ka1 $18) 31. Qxh7+ {[%emt 0:01:46]} (31. Re1 $1 $11 Rd8 32. Qxh7+ Kf8 33. Qh8+ (33. Rxe5 Rd1+ 34. Nc1 Qf6 $15) 33... Bg8 34. Qxe5 (34. Rxe5 $2 Qg1+ 35. Nc1 Rd1 $19)) 31... Kf8 $17 {[%emt 0:00:08]} 32. Qh8+ {[%emt 0:04:13]} Bg8 {[%emt 0:00:13]} 33. Re1 {[%emt 0:01:21] Black must now prevent Rh7.} Rd5 $1 {[%emt 0:00:42]} 34. Qh6+ $2 {[%emt 0:02:03]} (34. Rh7 $17 Nxc3+ 35. Kc1 (35. Kb2 Na4+ 36. Kc1 Qf6 $17)) 34... Ke8 $2 {[%emt 0:01:14]} (34... Kf7 $19 35. Qg5 Qf6 36. Qxf6+ Kxf6) 35. Qg7 $1 $11 {[%emt 0:00:08][%csl LRe5,LRg8]} Be6 {[%emt 0:01:09]} 36. Qxg6+ {[%emt 0:04:30]} Kd7 $1 {[%emt 0:00:05]} 37. Rh8 $1 {[%emt 0:02:23] Threatens to win with Qe8+.} Qc7 $2 {[%emt 0:04:22][%mdl 8192]} (37... Nxc3+ $11 {and Black is okay.} 38. Kb2 Rd1 39. Qe8+ (39. Rxe5 $2 Na4+ 40. Ka3 b4+ 41. Kxa4 Bxb3+ 42. cxb3 Qxg6 $19) 39... Kd6 40. Qd8+ Qxd8 41. Rxd8+ Bd7 42. Rxd1+ Nxd1+ 43. Kc1 Ne3) 38. Qe8+ $1 $18 {[%emt 0:00:15]} ({Not} 38. c4 Nc3+ 39. Kb2 bxc4 40. Qe8+ (40. Rh6 $2 Na4+ 41. Kc1 Qd6 $19) 40... Kd6 41. Qd8+ Qxd8 42. Rxd8+ Kc7 43. Rxd5 Nxd5 $15) 38... Kd6 {[%emt 0:00:04] [#]} 39. Rh6 $1 {[%emt 0:00:55] And now Qg8 would win.} Nxc3+ {[%emt 0:00:53] [#]} 40. Ka1 $2 {[%emt 0:00:17]} (40. Kb2 $1 $18) 40... Na4 $2 {[%emt 0:02:42]} ({Black should try} 40... Ne4 $11 41. Rg1 Nf6) 41. c4 $1 $40 {[%emt 0:00:10][%cal Bc2c4,Bc4d5][%mdl 224] Deflection. White is out for blood. The board is on fire. White is more active.} Rd3 $2 {[%emt 0:03:44][%mdl 8192]} (41... bxc4 $16 42. Nd4 (42. Qxa4 cxb3 43. Qxb3 Qb6 $17) 42... Rxd4 43. Qxa4 e4) 42. Qxb5 {[%emt 0:00:12]} e4 {[%emt 0:01:14]} 43. Qxa4 {[%emt 0:00:35]} Ke5 {[%emt 0:00:20]} 44. Qb5+ {[%emt 0:00:17]} Bd5 {[%emt 0:00:21]} 45. Rc1 {[%emt 0:00:39]} (45. Nc5 $142 Kd4 46. Ne6+ Bxe6 47. Rxe6 Qf4 48. Rxe7 Qd6 49. Rd7 Qxd7 50. Qxd7+ Kc5 51. Qxf5+ Kb4 52. Rc1) 45... Kf4 {[%emt 0:00:22]} 46. cxd5 {[%emt 0:00:30] Weighted Error Value: White=0.35/Black=0.63} 1-0

[Event "Chessable English Open-ch 2022"]
[Site "Kenilwoth"]
[Date "2022.05.20"]
[Round "4.5"]
[White "Okhai, Shabir"]
[Black "Roberson, Peter T"]
[Result "0-1"]
[ECO "B51"]
[WhiteElo "2121"]
[BlackElo "2421"]
[Annotator "TA"]
[PlyCount "100"]
[EventDate "2022.05.18"]
[EventType "swiss"]
[EventCountry "ENG"]
[SourceTitle "playchess.com"]
[Source "ChessBase"]
[SourceQuality "1"]
[TimeControl "5400+30"]

{[%evp 9,100,7,8,8,30,31,28,27,36,30,39,40,43,32,38,31,20,12,29,0,20,-14,-11,-27,5,4,18,11,20,-67,22,2,33,2,21,0,0,0,0,0,0,-3,0,-35,-23,-83,-104,-102,-102,-324,-343,-334,-329,-308,-301,-611,-626,-622,-606,-619,-631,-611,-612,-638,-519,-641,-656,-777,-771,-727,-713,-899,-908,-998,-985,-983,-988,-1196,-971,-1416,-1230,-1222,-1209,-1146,-1151,-1924,-1627,-29940,-7487,-4921,-1714,-4929,-1825]} 1. e4 {[%emt 0:00:04]} c5 {[%emt 0:00:04]} 2. Nf3 {[%emt 0:00:05]} d6 {[%emt 0:00:05]} 3. Bb5+ {[%emt 0:00:05]} Nd7 {[%emt 0:00:05]} 4. a4 {[%emt 0:00:04]} Ngf6 {[%emt 0:01:18]} 5. Nc3 {[%emt 0:00:07]} a6 {[%emt 0:01:07]} 6. Be2 {[%emt 0:00:06] B51: Sicilian: Moscow Variation (3 Bb5+) without 3...Bd7.} g6 {[%emt 0:00:56]} 7. a5 {[%emt 0:02:06]} Bg7 {[%emt 0:00:29]} 8. O-O {[%emt 0:01:07] White has an edge.} O-O {[%emt 0:00:11]} 9. d3 {[%emt 0:04:56]} b6 {[%emt 0:00:33]} 10. axb6 {[%emt 0:00:09]} Nxb6 {[%emt 0:00:21]} 11. Qd2 {[%emt 0:04:48]} Bb7 {[%emt 0:10:56]} 12. Qg5 {[%emt 0:00:58] [#]} Ne8 $146 {[%emt 0:01:30]} ({Predecessor:} 12... c4 13. Qh4 cxd3 14. cxd3 h5 15. d4 Qd7 16. h3 Rfc8 17. Re1 a5 18. Bd1 Rc4 {1-0 (38) Gumularz,S (2539)-Vokhidov,S (2536) Warsaw 2021}) 13. Qh4 {[%emt 0:02:39]} Nc7 {[%emt 0:01:04]} 14. Ng5 {[%emt 0:02:31][%csl Gg5][%cal Rh4h7] [#]} h6 {[%emt 0:01:08]} 15. Nh3 {[%emt 0:01:50]} (15. Nf3 $5 {[%cal Rc1h6]}) 15... e6 {[%emt 0:06:07]} 16. Qg3 {[%emt 0:02:37]} Kh7 {[%emt 0:02:42]} 17. f4 {[%emt 0:06:41]} f5 {[%emt 0:03:57]} 18. Bf3 {[%emt 0:03:55]} d5 {[%emt 0:05:31][%cal Bd6d5,Bd5d4][%mdl 32]} 19. exf5 {[%emt 0:07:39]} (19. e5 $11) 19... gxf5 {[%emt 0:02:48]} (19... exf5 $15 20. Re1 Rb8) 20. Bd2 {[%emt 0:07:08]} Bf6 {[%emt 0:01:59]} 21. Qe1 {[%emt 0:00:43]} ({Don't play} 21. Bh5 Rg8 22. Qf3 Rb8 $17) 21... Qd7 {[%emt 0:01:34]} 22. Nd1 {[%emt 0:02:53]} Bc6 {[%emt 0:03:32]} 23. Bc3 {[%emt 0:02:06]} d4 {[%emt 0:03:35] aiming for ...Bxf3.} 24. Ba5 {[%emt 0:01:11]} Nbd5 {[%emt 0:00:50][%cal Bb6d5,Bd5e7,Be7c6][%mdl 32]} 25. Kh1 {[%emt 0:01:52]} Nb5 {[%emt 0:03:50]} 26. Rb1 {[%emt 0:04:26]} Rg8 {[%emt 0:05:27]} 27. c4 {[%emt 0:04:04]} (27. Bd2 $11) 27... dxc3 $1 $17 {[%emt 0:00:16]} 28. bxc3 {[%emt 0:00:26] [#] Hoping for c4.} Ne7 $1 {[%emt 0:01:49] Black is much more active.} 29. Nb2 $2 {[%emt 0:14:48] This move loses the game for White.} (29. Ra1 $17) 29... Bxf3 $19 {[%emt 0:06:41]} 30. Rxf3 {[%emt 0:00:25]} Nc6 {[%emt 0:00:18]} 31. Nc4 {[%emt 0:08:46]} Nxa5 {[%emt 0:11:21]} 32. Nxa5 $2 {[%emt 0:01:45]} (32. Nb6 Qe7 33. Nxa8 Bxc3 34. Qe2) 32... Bxc3 {[%emt 0:03:35]} 33. Qh4 {[%emt 0:00:06]} Rg4 {[%emt 0:03:21]} ({Not} 33... Bxa5 34. Ng5+ Kg7 35. Rg3 $19) 34. Qh5 {[%emt 0:02:12]} Bxa5 {[%emt 0:04:06]} 35. Ng5+ {[%emt 0:00:53]} Kg7 {[%emt 0:00:08]} 36. Ne4 {[%emt 0:09:31]} Qf7 {[%emt 0:03:27]} 37. Qh3 {[%emt 0:00:56]} Bb4 {[%emt 0:02:01]} 38. Re3 {[%emt 0:01:29]} Rg6 {[%emt 0:03:54]} 39. Ng3 {[%emt 0:00:12]} Nc3 {[%emt 0:01:30]} 40. Nh5+ {[%emt 0:00:33]} Kh7 {[%emt 0:00:21]} 41. Rg1 {[%emt 0:00:29]} Nd5 {[%emt 0:00:26]} 42. Re2 {[%emt 0:00:16]} a5 {[%emt 0:02:02][%cal Ba6a5,Ba5a4][%mdl 32]} 43. g4 {[%emt 0:00:05]} fxg4 {[%emt 0:00:46]} 44. Rxg4 {[%emt 0:00:07]} Rxg4 {[%emt 0:00:53]} 45. Qxg4 {[%emt 0:00:01]} Rg8 {[%emt 0:00:54]} 46. Qf3 {[%emt 0:00:02]} a4 {[%emt 0:01:12]} 47. Re5 {[%emt 0:00:30]} Bc3 {[%emt 0:01:35]} 48. d4 {[%emt 0:01:24]} Bxd4 {[%emt 0:00:40][%csl Gd4][%cal Rg8g1]} 49. Re1 {[%emt 0:00:01]} Rg6 {[%emt 0:01:07] Strongly threatening ...Qf5.} 50. Qe4 {[%emt 0:00:26]} Qf5 {[%emt 0:00:23] Weighted Error Value: White=0.39/Black=0.12 (very precise)} 0-1

[Event "Chessable English Open-ch 2022"]
[Site "Kenilwoth"]
[Date "2022.05.20"]
[Round "4.6"]
[White "Boswell, Jacob Connor"]
[Black "Arkell, Keith C"]
[Result "1/2-1/2"]
[ECO "E15"]
[WhiteElo "2075"]
[BlackElo "2367"]
[Annotator "TA"]
[PlyCount "83"]
[EventDate "2022.05.18"]
[EventType "swiss"]
[EventCountry "ENG"]
[SourceTitle "playchess.com"]
[Source "ChessBase"]
[SourceQuality "1"]
[TimeControl "5400+30"]

{[%evp 9,83,0,62,58,62,67,61,56,58,64,79,35,54,47,60,51,62,55,59,33,27,12,24,9,11,17,47,34,48,52,37,54,132,127,125,124,97,29,29,35,28,22,22,19,22,8,29,22,24,15,77,6,6,6,6,0,0,0,0,0,0,0,0,0,0,0,0,0,0,0,0,0,0,0,0,0]} 1. Nf3 {[%emt 0:03:10]} Nf6 {[%emt 0:00:06]} 2. c4 {[%emt 0:00:18]} b6 {[%emt 0:00:04]} 3. d4 {[%emt 0:01:35]} e6 {[%emt 0:00:05]} 4. g3 {[%emt 0:02:38]} Ba6 {[%emt 0:00:04]} 5. Qc2 {[%emt 0:05:08]} b5 {[%emt 0:00:43]} (5... c5 $11) 6. cxb5 $14 {[%emt 0:03:33] E15: Queen's Indian: 4 g3 sidelines, 4 g3 Ba6 and 4 g3 Bb7 early deviations.} Bxb5 {[%emt 0:00:05][%cal Oc7c5]} 7. Nc3 {[%emt 0:00:27]} Ba6 {[%emt 0:00:09]} 8. Bg2 {[%emt 0:01:48] White is slightly better.} Be7 {[%emt 0:02:02]} 9. O-O {[%emt 0:00:50]} O-O {[%emt 0:00:08] [#]} 10. Rb1 $146 {[%emt 0:03:47]} ({Predecessor:} 10. Re1 d5 11. Bg5 h6 12. Bxf6 Bxf6 13. Na4 Bb5 14. e3 a5 15. Rac1 Na6 16. Bf1 {½-½ (65) Ditmas,H (2018)-Arkell,K (2447) London 2016}) 10... Bb7 {[%emt 0:03:53]} 11. Bg5 {[%emt 0:05:08] Bxf6 is the strong threat.} Bxf3 {[%emt 0:08:56]} 12. Bxf3 {[%emt 0:00:52]} d5 {[%emt 0:00:06]} 13. b4 {[%emt 0:04:34]} Nbd7 {[%emt 0:11:38]} 14. e3 {[%emt 0:12:59]} c6 {[%emt 0:01:29]} 15. Na4 {[%emt 0:01:59]} a5 {[%emt 0:02:27]} 16. a3 {[%emt 0:01:11]} axb4 {[%emt 0:00:07]} 17. axb4 {[%emt 0:00:11]} Nb6 {[%emt 0:01:04]} 18. Nc5 {[%emt 0:05:14]} Nc4 {[%emt 0:00:46]} 19. Ra1 {[%emt 0:02:05]} Rxa1 {[%emt 0:09:19]} 20. Rxa1 {[%emt 0:00:09]} h6 {[%emt 0:00:21]} (20... e5 $14) 21. Bxf6 $16 {[%emt 0:01:25]} Bxf6 {[%emt 0:00:32]} 22. Be2 {[%emt 0:06:11]} Nb6 {[%emt 0:06:15]} 23. Nb7 {[%emt 0:05:07] Inhibits Qd6.} ({White should try} 23. Ra7 $16) 23... Qe7 $11 {[%emt 0:07:01][%csl LRb4,LRb7]} 24. Na5 {[%emt 0:05:19]} Qxb4 {[%emt 0:01:30]} ({Don't play} 24... Ra8 25. Qc3 $16) 25. Nxc6 {[%emt 0:00:59]} Qd6 {[%emt 0:00:20]} 26. Ra6 {[%emt 0:02:48]} Nc8 {[%emt 0:05:47]} 27. Ne5 {[%emt 0:05:33]} Qe7 {[%emt 0:01:30]} 28. Rc6 {[%emt 0:03:16]} Qd8 {[%emt 0:04:10]} 29. Ng4 {[%emt 0:03:38]} Nd6 {[%emt 0:02:12] [#]} (29... Be7 $11 {keeps the balance.}) 30. Nxf6+ {[%emt 0:01:15]} (30. Bd3 $1 $16) 30... gxf6 {[%emt 0:00:02][%cal Bg7f6,Bf6f5,Bf5e4][%mdl 32] The position is equal.} 31. Bd3 {[%emt 0:01:11]} f5 {[%emt 0:01:12]} 32. Qc5 {[%emt 0:02:04]} Ne4 {[%emt 0:03:27]} 33. Bxe4 {[%emt 0:01:17]} fxe4 {[%emt 0:00:08][%mdl 4096] Endgame KQR-KQR} 34. Rc7 {[%emt 0:01:02]} Kg7 {[%emt 0:02:12]} 35. Kg2 {[%emt 0:00:46]} h5 {[%emt 0:07:12]} 36. h4 {[%emt 0:00:06]} Rg8 {[%emt 0:00:41]} 37. Qc6 {[%emt 0:02:35]} Qf6 {[%emt 0:05:03]} 38. Rc8 {[%emt 0:00:42] Active counter play!} Rxc8 {[%emt 0:00:06]} 39. Qxc8 {[%emt 0:00:02]} Qf3+ {[%emt 0:00:06]} 40. Kg1 {[%emt 0:00:18]} Qg4 {[%emt 0:00:15]} 41. Qd8 {[%emt 0:01:03]} f6 {[%emt 0:01:22]} 42. Qe8 {[%emt 0:01:22] Weighted Error Value: White=0.12 (very precise) /Black=0.11 (very precise)} 1/2-1/2

[Event "Chessable English Open-ch 2022"]
[Site "Kenilwoth"]
[Date "2022.05.20"]
[Round "4.7"]
[White "Wells, Peter K"]
[Black "Royal, Shreyas"]
[Result "*"]
[ECO "D24"]
[WhiteElo "2374"]
[BlackElo "2385"]
[Annotator "TA"]
[PlyCount "43"]
[EventDate "2022.05.18"]
[EventType "swiss"]
[EventCountry "ENG"]
[SourceTitle "playchess.com"]
[Source "ChessBase"]
[SourceQuality "1"]
[TimeControl "5400+30"]

{[%evp 9,43,21,51,46,48,48,44,42,51,44,48,37,41,11,58,0,0,0,0,0,0,0,40,34,31,44,27,-51,-51,-55,-54,-53,-53,-64,-52,-48]} 1. d4 {[%emt 0:02:25]} Nf6 {[%emt 0:00:07]} 2. c4 {[%emt 0:00:14]} e6 {[%emt 0:00:06]} 3. Nf3 {[%emt 0:00:16]} d5 {[%emt 1:31:47]} 4. Nc3 {[%emt 0:00:39]} dxc4 {[%emt 0:00:14]} 5. e4 {[%emt 0:00:24][%cal Be2e4,Be4e5][%mdl 32]} b5 {[%emt 0:00:08]} 6. e5 {[%emt 0:04:15] D24: Queen's Gambit Accepted: 3 Nf3 Nf6 4 Nc3.} Nd5 {[%emt 0:00:07]} 7. Nxb5 {[%emt 0:00:48]} Nb6 {[%emt 0:00:10]} 8. Be2 {[%emt 0:14:29] White is slightly better.} Nc6 {[%emt 0:00:27]} 9. O-O {[%emt 0:02:01]} Be7 {[%emt 0:01:04]} 10. Qd2 {[%emt 1:09:59] is the new trend.} Ba6 {[%emt 0:27:52] [#]} 11. a4 $146 {[%emt 0:48:17]} ({Predecessor:} 11. Nc3 Nb4 12. Qf4 Nd3 13. Qg4 Nxc1 14. Raxc1 O-O 15. Rfd1 Rb8 16. b3 Qc8 17. bxc4 Bxc4 18. Bxc4 Nxc4 {1-0 (36) Stefanov,E (2350)-Krstic,M (2058) Tornelo INT 2021}) 11... Qd7 {[%emt 0:02:04]} (11... O-O $11 {feels stronger.}) 12. b3 {[%emt 0:05:24]} (12. Qf4 $14) 12... cxb3 $11 {[%emt 0:06:42]} 13. Nxc7+ {[%emt 0:01:04]} Qxc7 {[%emt 0:00:04]} 14. Bxa6 {[%emt 0:00:04]} O-O {[%emt 0:00:10]} 15. Qc3 {[%emt 0:10:43]} Rfd8 {[%emt 0:01:21]} 16. Be3 {[%emt 0:03:18] This bishop pair is nice.} Nd5 {[%emt 0:04:34]} 17. Qxb3 {[%emt 0:00:32]} Rab8 {[%emt 0:02:26]} 18. Qc2 {[%emt 0:04:52] [#]} (18. Qc4 $11) 18... Nxe5 $1 $15 {[%emt 0:00:43] Black is slightly better.} 19. Qe4 {[%emt 0:00:46]} Nxf3+ {[%emt 0:00:55]} 20. Qxf3 {[%emt 0:00:03]} Bf6 {[%emt 0:03:06]} 21. Rfc1 {[%emt 0:06:12]} Qb6 {[%emt 0:00:57]} 22. Bf1 {[%emt 0:03:38] Weighted Error Value: White=0.17 (very precise) /Black=0.11 (very precise)} *